Cogmind - Beta 14 @@@ ROGUE MODE // 2024.11.25 @ 06:41:08 Player: Fangrelle Result: Destroyed by Y-54 Guardian with Gatling Laser Performance ------------- Evolutions (3) 1500 Regions Visited (5) 1000 Robots Destroyed (127) 635 Value Destroyed (4541) 4541 Prototype IDs (19) 380 Alien Tech Used (0) 0 Bonus (40) 40 TOTAL SCORE: 8096 Bonus ------- High Alert Combat Kills 40 Cogmind --------- Core Integrity 0/700 Matter 284/300 Energy 180/180 System Corruption 2% Temperature Cool (6) Movement Rolling (145) Ox3 Location -7/Storage Parts ------- > --- POWER (1) -------- Meta Core > --- PROPULSION (2) --- Armored Huge Wheel > --- UTILITY (8+1) ---- Huge Storage Unit Advanced Visual Processing Unit Target Analyzer Core Analyzer ECM Suite System Shield System Shield System Shield (+) > --- WEAPON (2+1) ----- Precision Assault Rifle Precision Assault Rifle Power Maul (+) > --- INVENTORY (25) --- Improved Deuterium Engine Improved Deuterium Engine Improved Deuterium Engine Medium Treads Improved Cooling System Improved Melee Analysis Suite Improved Melee Analysis Suite Component Analysis Suite System Restoration Module System Restoration Module High-powered Tractor Beam Cobbler Unit Arc Projector Precision Assault Rifle Precision Assault Rifle Advanced EMP Blaster Heavy Rocket Launcher Improved Datajack Remote Datajack Plasma Cutter Chainsword Peak State ------------ > --- POWER ------------ Meta Core > --- PROPULSION ------- Medium Treads Armored Huge Wheel > --- UTILITY ---------- Huge Storage Unit Advanced Visual Processing Unit Transmission Jammer Heavy Armor Plating Improved Shield Generator System Shield System Shield System Shield > --- WEAPON ----------- Mini Assault Cannon Power Maul Chainsword > --- INVENTORY -------- Improved Deuterium Engine Improved Deuterium Engine Medium Treads Armored Huge Wheel Improved Cooling System ECM Suite Improved Light Armor Plating Component Analysis Suite System Restoration Module System Restoration Module Cobbler Unit Arc Projector Precision Assault Rifle Precision Assault Rifle Precision Assault Rifle Precision Assault Rifle Advanced EMP Blaster Heavy Rocket Launcher Improved Datajack Remote Datajack Plasma Cutter [Rating: 73] Favorites ----------- Power Light Angular Momentum Engine Engine Light Angular Momentum Engine Power Core Meta Core Propulsion Improved Treads Treads Improved Treads Leg Aluminum Leg Wheel Armored Huge Wheel Hover Unit Aerolev Unit Flight Unit Improved VTOL Module Utility System Shield Device ECM Suite Storage Humpback Processor Advanced Visual Processing Unit Hackware System Shield Protection Scrap Shield Weapon Subdweller Beam Cannon Energy Gun Heavy Riot Gun Energy Cannon Subdweller Beam Cannon Ballistic Gun Heavy Battle Rifle Ballistic Cannon Battle Cannon Launcher Advanced EMP Blaster Special Weapon Mining Laser Impact Weapon Power Maul Slashing Weapon Makeshift Sword Build | -11 -10 -10 -8 -7 -7 ------- Run | Yrd Mat Sub Mat Fac Sto Slots Evolved 6 | . . . 4 2 . Power . | . . . . . . Propulsion . | . . . . . . Utility 6 | . . . 4 2 . Weapon . | . . . . . . Parts Attached 163 | . 1 35 57 53 17 Power 13 | . . 4 4 5 . Engine 12 | . . 4 4 4 . Core 1 | . . . . 1 . Reactor . | . . . . . . Propulsion 26 | . . 10 9 6 1 Treads 13 | . . 3 6 4 . Leg . | . . . . . . Wheel 11 | . . 7 1 2 1 Hover 1 | . . . 1 . . Flight 1 | . . . 1 . . Utility 72 | . . 6 29 28 9 Device 35 | . . 3 17 13 2 Storage 6 | . . . 4 2 . Processor 5 | . . . 1 2 2 Hackware 4 | . . . 2 2 . Protection 22 | . . 3 5 9 5 Artifact . | . . . . . . Weapon 52 | . 1 15 15 14 7 Energy Gun 9 | . . 1 5 3 . Energy Cannon 5 | . . 3 2 . . Ballistic Gun 19 | . . 8 5 3 3 Ballistic Cannon 2 | . . . . 1 1 Launcher 1 | . . . 1 . . Special Weapon 4 | . 1 3 . . . Impact Weapon 1 | . . . . 1 . Slashing Weapon 11 | . . . 2 6 3 Piercing Weapon . | . . . . . . Special Melee Weapon . | . . . . . . Unidentified Prototypes 8 | . . . 5 1 2 Parts Lost 30 | . . 10 5 8 7 Power 3 | . . 2 1 . . Propulsion 7 | . . 3 . 2 2 Utility 14 | . . 2 3 5 4 Weapon 6 | . . 3 1 1 1 Highest Loss Streak 4 | . . 4 1 2 3 To Critical Strikes . | . . . . . . Average Slot Usage (%) 80 | . 85 79 78 84 86 Engine 9 | . 14 13 8 6 . Treads 11 | . . 12 16 4 4 Wheel 5 | . . 10 . 4 5 Device 8 | . . . 7 18 13 Storage 5 | . 14 . 8 7 6 Processor 1 | . . . . 3 6 Hackware 7 | . . . 8 12 18 Protection 9 | . . 12 7 8 4 Energy Gun 1 | . 8 . 3 1 . Energy Cannon 5 | . . 11 5 1 . Ballistic Gun 7 | . 14 9 7 3 4 Special Weapon 1 | . 6 4 . . . Slashing Weapon 2 | . . . . 7 7 Peak Build Rating 73 | . 6 17 41 71 73 Average Rating 31 | . 6 12 33 46 67 On Entrance 23 | 6 6 6 15 37 71 Naked Turns . | . . . . . . Heaviest Build 304 | 14 14 33 234 304 114 Greatest Support 49 | 20 20 40 49 46 28 Greatest Overweight (x) 76 | . . 10 76 10 4 Average Overweight (x) 2 | . . 2 3 3 3 Largest Inventory Capacity 35 | . 8 8 35 35 25 Average Capacity 21 | . 8 5 29 29 25 Most Carried 35 | . 8 8 35 35 25 Average Carried 19 | . 7 5 26 27 22 Final Capacity 35 | 8 8 5 35 25 25 Final Carried 32 | 6 8 4 32 25 22 Class Distribution -------------------- 34% | Mutant 34% | Hauler-Mutant 21% | Hacker-Mutant 3% | Subdweller-Mutant Dominant Class ---------------- Mutant | -10/Materials Mutant | -10/Subcaves Hauler-Mutant | -8/Materials Hacker-Mutant | -7/Factory Hacker-Mutant | -7/Storage Resources | -11 -10 -10 -8 -7 -7 ----------- Run | Yrd Mat Sub Mat Fac Sto Matter Collected 4550 | 200 . 676 1984 1245 445 Remotely 1138 | . . . 987 151 . Salvage Created 5779 | . . 752 1826 1894 1307 Parts 317 | . . 50 107 108 52 Haulers Intercepted 6 | . . . 2 1 3 Recyclers Shooed 3 | . . . 1 1 1 Parts Field Recycled . | . . . . . . Retrieved Matter . | . . . . . . Parts Self-Destructed 18 | . . 18 . . . Prevented . | . . . . . . Kills | -11 -10 -10 -8 -7 -7 ------- Run | Yrd Mat Sub Mat Fac Sto Combat Hostiles Destroyed 94 | . . 18 28 32 16 Melee 32 | . . . . 22 10 Guns 46 | . . 10 24 7 5 Cannons 10 | . . 7 1 2 . AOE 3 | . . . 2 1 . Classes Destroyed 14 | . . 5 7 1 1 Worker 5 | . . . 3 1 1 Builder 3 | . . . 1 2 . Hauler 6 | . . . 2 1 3 Recycler 10 | . . . 2 4 4 Operator 1 | . . . 1 . . Turret 2 | . . 2 . . . Watcher 6 | . . . 4 1 1 Swarmer 11 | . . 3 3 5 . Grunt 46 | . . 3 17 16 10 Duelist 1 | . . . . . 1 Sentry 12 | . . 1 6 2 3 Hunter 5 | . . . 2 2 1 Programmer 8 | . . . . 7 1 Subdweller 11 | . . 11 . . . Best Kill Streak 6 | . . 3 6 5 5 Combat Bots Only 5 | . . 3 5 4 4 Max Kills in Single Turn 3 | . . 1 3 1 1 Gunslinging . | . . . . . . Exploded 2 | . . . 2 1 . Melee 1 | . . . . 1 1 Uniques/NPCs Destroyed . | . . . . . . Combat | -11 -10 -10 -8 -7 -7 -------- Run | Yrd Mat Sub Mat Fac Sto Hostile Shots Fired 1016 | . . 156 154 379 327 Missed 322 | . . 38 41 121 122 Damage Taken 8514 | . . 1764 1694 3155 1901 Core 1202 | . . 213 282 415 292 Absorbed by Shields 494 | . . . . 123 371 Regen/Repaired (Parts) 838 | . . . 210 348 280 Core Remaining (%) 54 | 100 . 14 48 . . Volleys Fired 315 | . 15 102 114 55 29 Largest 2 | . 1 2 2 2 2 Hottest 126 | . 100 110 126 96 56 Shots Fired 562 | . 15 158 226 105 58 Gun 449 | . . 92 212 87 58 Cannon 66 | . . 34 14 18 . Launcher . | . . . . . . Special 47 | . 15 32 . . . Kinetic 337 | . . 88 122 69 58 Thermal 81 | . 15 66 . . . Explosive . | . . . . . . Electromagnetic 144 | . . 4 104 36 . Robot Hit Streak 23 | . . 17 13 11 23 Robot Miss Streak 5 | . . 3 5 4 2 Penetration Max . | . . . . . . Secondary Targets . | . . . . . . Shots Hit Robots 493 | . . 97 157 143 96 Core Hits 204 | . . 36 80 55 33 Critical Kills 3 | . . 1 1 . 1 Critical Parts Destroyed 6 | . . 3 . 1 2 Critical Strikes 25 | . . 4 1 7 13 Meltdown 1 | . . 1 . . . Destroy 5 | . . 3 1 1 . Smash 3 | . . . . . 3 Sever 16 | . . . . 6 10 Melee Attacks 172 | . . . . 109 63 Impact 8 | . . . . . 8 Slashing 164 | . . . . 109 55 Piercing . | . . . . . . Sneak Attacks 18 | . . . . 10 8 Combat Hostiles . | . . . . . . Follow-up Attacks 17 | . . . . 7 10 Damage Inflicted 11982 | . . 1432 3332 4256 2962 Guns 5303 | . . 808 2596 993 906 Cannons 1088 | . . 551 280 257 . Explosions 505 | . . . 453 52 . Melee 4989 | . . . . 2933 2056 Ramming 24 | . . . 3 21 . Kinetic 4033 | . . 761 1435 931 906 Thermal 1129 | . . 624 453 52 . Explosive . | . . . . . . Electromagnetic 1807 | . . 47 1441 319 . Impact 308 | . . . . . 308 Slashing 4681 | . . . . 2933 1748 Piercing . | . . . . . . Highest Corruption 2 | . . . . 2 2 Average Corruption 1 | . . . . 1 1 Corruption Purged 7 | . . . . 7 . Corruption Blocked . | . . . . . . Effects 6 | . . . . 6 . Message Errors 1 | . . . . 1 . Matter Fused 1 | . . . . 1 . Heat Flow Errors 1 | . . . . 1 . Energy Discharges 3 | . . . . 3 . Overload Shots . | . . . . . . Overflow Damage 499 | . . 19 20 306 154 Projectiles 19 | . . 19 . . . Explosions 40 | . . . 20 20 . Melee 440 | . . . . 286 154 Knockbacks 2 | . . . . 1 1 Impact 1 | . . . . . 1 Kinetic 1 | . . . . 1 . Secondary . | . . . . . . Self-Inflicted Damage 89 | . . . 56 33 . Shots 2 | . . . 1 1 . Rammed 3 | . . . 1 2 . Targets Rammed 3 | . . . 1 2 . Kicked . | . . . . . . Crushed . | . . . . . . Highest Temperature 411 | . 130 232 411 375 7 Average Temperature 77 | . 66 39 74 105 3 Received Heat Transfer 2972 | . . 882 738 719 633 Effects 5 | . . 1 2 2 . Shutdowns 2 | . . . 1 1 . Energy Bleed 1 | . . 1 . . . Short Circuit 2 | . . . 1 1 . Siege Activations . | . . . . . . Robots Corrupted 2 | . . . 1 . 1 Combat Hostiles 2 | . . . 1 . 1 Parts Fried 12 | . . . 8 . 4 Impact Corruptions 3 | . . . . . 3 Robots Melted 1 | . . 1 . . . Combat Hostiles 1 | . . 1 . . . Parts Melted 4 | . . 3 1 . . Heat Transferred 1490 | . . 990 500 . . Parts Sabotaged . | . . . . . . Parts Stolen . | . . . . . . Parts Stripped . | . . . . . . Power Chain Reactions 6 | . . . 5 1 . Alert | -11 -10 -10 -8 -7 -7 ------- Run | Yrd Mat Sub Mat Fac Sto Peak Influence 548 | . . . 336 548 326 Initial 147 | . . . 68 147 87 Average 215 | . . . 245 188 213 Maximum Alert Level 2 | . . . 1 2 1 Low Security (%) 44 | . 100 . 22 69 44 Level 1 52 | . . . 77 22 55 Level 2 3 | . . . . 7 . Level 3 . | . . . . . . Level 4 . | . . . . . . Level 5 . | . . . . . . High Security . | . . . . . . Max Security . | . . . . . . Squads Dispatched 19 | . . . 3 11 5 Investigation 2 | . . . 1 1 . Extermination 7 | . . . . 6 1 Reinforcement 7 | . . . 2 1 4 Assault . | . . . . . . Garrison 3 | . . . . 3 . Intercept . | . . . . . . Searches Triggered . | . . . . . . Construction Impeded 1 | . . . 1 . . Haulers Reinforced 1 | . . . . . 1 Active Scanning Responses . | . . . . . . Cargo Convoy Interrupts . | . . . . . . Stealth | -11 -10 -10 -8 -7 -7 --------- Run | Yrd Mat Sub Mat Fac Sto Distress Signals 4 | . . . 2 2 . Communications Jammed 11 | . . . . 2 9 Distress Signals 9 | . . . . . 9 Times Spotted 148 | . . 21 40 58 29 Peak Tracking Total 5 | . . 5 3 4 5 Tactical Retreats 17 | . . 2 2 7 6 Traps | -11 -10 -10 -8 -7 -7 ------- Run | Yrd Mat Sub Mat Fac Sto Traps Triggered 5 | . . 2 . 3 . Indirectly . | . . . . . . Trap Hack Attempts . | . . . . . . Triggered . | . . . . . . Disarmed . | . . . . . . Reprogrammed . | . . . . . . Reused 1 | . . . . . 1 Traps Extracted . | . . . . . . Installed 5 | . . 2 1 . 2 Triggered 4 | . . 3 . . 1 Most Traps Carried 1 | . . . 1 . 1 Machines | -11 -10 -10 -8 -7 -7 ---------- Run | Yrd Mat Sub Mat Fac Sto Machines Disabled 9 | . . 3 4 2 . Max in Single Turn 2 | . . 1 1 2 . Garrison Access 1 | . . . . 1 . Machines Repaired . | . . . . . . Machines Dismantled . | . . . . . . Machines Sabotaged . | . . . . . . Overloaded Fab Kills . | . . . . . . Hacking | -11 -10 -10 -8 -7 -7 --------- Run | Yrd Mat Sub Mat Fac Sto Machines Accessed 30 | . 1 1 10 13 5 Terminals 17 | . . . 8 5 4 Fabricators 1 | . . . . 1 . Repair Stations 4 | . . . 2 1 1 Recycling Units 4 | . 1 . . 3 . Scanalyzers 1 | . . . . 1 . Garrison Access 2 | . . . . 2 . Total Hacks 138 | . 1 9 47 62 19 Successful 89 | . 1 9 29 41 9 Failed 49 | . . . 18 21 10 Catastrophic 12 | . . . 2 7 3 Database Lockouts . | . . . . . . Manual 72 | . . . 37 20 15 Terminals 84 | . . . 40 27 17 Fabricators 2 | . . . . 2 . Repair Stations 24 | . . . 7 15 2 Recycling Units 5 | . 1 . . 4 . Scanalyzers 9 | . . . . 9 . Garrison Access 5 | . . . . 5 . Terminal Hacks 24 | . . 9 6 8 1 Record 9 | . . 8 1 . . Part Schematic 1 | . . . . 1 . Robot Schematic 1 | . . . . 1 . Open Door 1 | . . . . . 1 Open DSF 1 | . . . . 1 . Level Access Points 1 | . . . 1 . . Branch Access Points 2 | . . . 1 1 . Alert Level 2 | . . . 1 1 . Unreport Threat 3 | . . . . 3 . Zone Layout 2 | . . . 2 . . Derelict Proto ID Bank 1 | . . 1 . . . Fabricator Hacks 1 | . . . . 1 . Load Schematic 1 | . . . . 1 . Repair Station Hacks 22 | . . . 6 14 2 Scan Component 11 | . . . 3 7 1 Repair 11 | . . . 3 7 1 Recycling Unit Hacks 2 | . 1 . . 1 . Retrieve Components 2 | . 1 . . 1 . Scanalyzer 8 | . . . . 8 . Insert Component 3 | . . . . 3 . Analyze 5 | . . . . 5 . Garrison Access Hacks 1 | . . . . 1 . Seal Access 1 | . . . . 1 . Unauthorized Hacks 31 | . . . 17 8 6 Terminals 31 | . . . 17 8 6 Track 2 | . . . 2 . . Assimilate 5 | . . . 3 1 1 Botnet 12 | . . . 6 4 2 Detonate 1 | . . . 1 . . Operators 5 | . . . 2 1 2 Skim 6 | . . . 3 2 1 Fabricators . | . . . . . . Repair Stations . | . . . . . . Recycling Units . | . . . . . . Scanalyzers . | . . . . . . Garrison Access . | . . . . . . Data Cores Recovered . | . . . . . . Used . | . . . . . . Hacking Detections 22 | . . . 9 10 3 Full Trace Events 1 | . . . . 1 . Feedback Events . | . . . . . . Feedback Blocked . | . . . . . . Robot Schematics Acquired 1 | . . . . 1 . Robots Built . | . . . . . . Authchips . | . . . . . . Time . | . . . . . . Total Robot Build Rating . | . . . . . . Part Schematics Acquired 4 | . . . . 4 . Parts Built . | . . . . . . Authchips . | . . . . . . Time . | . . . . . . Total Part Build Rating . | . . . . . . Parts Repaired 11 | . . . 3 7 1 Time 446 | . . . 148 260 38 Parts Recycled . | . . . . . . Recycled Matter . | . . . . . . Retrieved Matter . | . . . . . . Retrieved Components 13 | . 3 . . 10 . Parts Scanalyzed 3 | . . . . 3 . Part Schematics Acquired 3 | . . . . 3 . Parts Damaged . | . . . . . . Bothacking | -11 -10 -10 -8 -7 -7 ------------ Run | Yrd Mat Sub Mat Fac Sto Used RIF Installer . | . . . . . . Robots Hacked . | . . . . . . Non-combat . | . . . . . . Combat . | . . . . . . Robot Hacks Applied . | . . . . . . Relay Couplers Released . | . . . . . . Fabnet Peak Effective % . | . . . . . . Robots Rewired . | . . . . . . Allies Hacked . | . . . . . . Hacks Repelled . | . . . . . . Allies | -11 -10 -10 -8 -7 -7 -------- Run | Yrd Mat Sub Mat Fac Sto Total Allies . | . . . . . . Largest Group . | . . . . . . Highest-Rated Group . | . . . . . . Highest-Rated Ally . | . . . . . . Total Orders . | . . . . . . Ally Attacks . | . . . . . . Total Damage . | . . . . . . Kills . | . . . . . . Allies Corrupted . | . . . . . . Allies Melted . | . . . . . . Intel | -11 -10 -10 -8 -7 -7 ------- Run | Yrd Mat Sub Mat Fac Sto Robot Analysis Total . | . . . . . . Derelict Logs Recovered 1 | . . 1 . . . Drone Launches . | . . . . . . Drone Recoveries . | . . . . . . Exploration | -11 -10 -10 -8 -7 -7 ------------- Run | Yrd Mat Sub Mat Fac Sto Turns Passed 16246 | . 212 5150 5499 4497 888 Spaces Moved 6212 | 1 70 3163 969 1655 354 Core 122 | . . 121 1 . . Treads 1689 | . . 635 848 206 . Legs 84 | 1 70 13 . . . Wheels 4317 | . . 2394 120 1449 354 Hover . | . . . . . . Flight . | . . . . . . Fastest Speed 80 | 120 120 80 110 130 145 Average Speed 202 | 120 120 142 419 204 149 Slowest Speed 3850 | 120 120 550 3850 565 160 Overloaded Moves . | . . . . . . Propulsion Burnouts . | . . . . . . Robots Hopped . | . . . . . . Cave-ins Triggered . | . . . . . . Exploration Rate (%) 41 | 2 8 95 58 49 38 Regions Visited 5 Branch Regions 2 Pre-discovered Areas 1 | . . 1 . . . Known Exits Taken 2 | . . . 1 1 . Unknown Exits Taken 3 | 1 1 1 . . . Scrap Searched 3 | . . 3 . . . Spaces Dug 11 | . 2 . . 7 2 Terrain Destroyed 72 | . 4 4 14 48 2 Melee 9 | . . . . 7 2 Projectile 9 | . 4 4 . 1 . AOE 54 | . . . 14 40 . Terrain Rammed . | . . . . . . Walls Destroyed . | . . . . . . Machines Disabled . | . . . . . . Actions | -11 -10 -10 -8 -7 -7 --------- Run | Yrd Mat Sub Mat Fac Sto Total 9182 | . 152 3613 2227 2594 596 Wait 2045 | . 65 260 973 632 115 Move 6207 | . 69 3162 968 1654 354 Hop . | . . . . . . Pick Up 103 | . 2 11 42 39 9 Fast Attach 68 | . . 20 27 13 8 Attach 60 | . . 9 16 26 9 Detach 31 | . . 1 17 7 6 Swap 35 | . 1 6 14 14 . Drop 148 | . . 27 54 54 13 Fire 315 | . 15 102 114 55 29 Melee 149 | . . . . 98 51 Ram 2 | . . . . 2 . Kick . | . . . . . . Crush 1 | . . . 1 . . Escape Stasis . | . . . . . . Rewire . | . . . . . . Trap 5 | . . 2 1 . 2 Miscellaneous 13 | . . 13 . . . Route ------- -11/Scrapyard -10/Materials (discovered 2 exits: [*Min] / *Sub) -10/Subcaves (discovered 3 exits: *Mat x2 / [*Rec]) -8/Materials (discovered 3 exits: *Fac x3) -7/Factory (discovered 4 exits: [*Fac] / *Sto / Low x2) -7/Storage History --------- Turn | Location | Event 1 | -11/Scrapyard | Discovered new exit (range 0) 1 | -11/Scrapyard | Entered Materials 1 | -10/Materials | Discovered new exit (range 7) 208 | -10/Materials | Discovered new exit (range 3) 213 | -10/Materials | Entered Subcaves 327 | -10/Subcaves | Build established: Mutant 1467 | -10/Subcaves | Lost 4 parts (2n1u1w) 1504 | -10/Subcaves | Shifting Twisted Machinery released Sub. Machine Gun 1529 | -10/Subcaves | Discovered new exit (range 11) 1692 | -10/Subcaves | Core integrity fell below 50% 1705 | -10/Subcaves | Disturbed a concealed Subdweller 1737 | -10/Subcaves | Lost 4 parts (1p1n1u1w) 2252 | -10/Subcaves | Learned location of Zion (-6) 2555 | -10/Subcaves | Curiously followed by a Cobbler waking with a query about "LVR3C" 2769 | -10/Subcaves | A swath of the cavern ceiling suddenly collapsed 2809 | -10/Subcaves | Build established: Subdweller-Mutant 3277 | -10/Subcaves | Build established: Mutant 3842 | -10/Subcaves | Discovered new exit (range 7) 4189 | -10/Subcaves | A swath of the cavern ceiling suddenly collapsed 4352 | -10/Subcaves | Visited 4L-MR0's lab 4369 | -10/Subcaves | Found Meta Core 5073 | -10/Subcaves | Discovered new exit (range 8) 5080 | -10/Subcaves | Core integrity fell below 20% 5363 | -10/Subcaves | Entered Materials 5363 | -8/Materials | Evolved 4 slots: Utility x4 7061 | -8/Materials | Repaired Mak. System Restoration Module 7409 | -8/Materials | Build established: Hauler-Mutant 9669 | -8/Materials | Core integrity fell below 50% 10492 | -8/Materials | Repaired Enh. Autogun 10537 | -8/Materials | Repaired Hvy. Riot Gun 10761 | -8/Materials | Identified exit to Factory 10862 | -8/Materials | Entered Factory 10862 | -7/Factory | Evolved 2 slots: Utility x2 11775 | -7/Factory | Garrison activated, responded to threat 12966 | -7/Factory | Build established: Hacker-Mutant 13997 | -7/Factory | Discovered new exit (range 18) 14502 | -7/Factory | Repaired Mak. Sword 14529 | -7/Factory | Repaired ECM Suite 14562 | -7/Factory | Repaired Med. Armor Plating 14596 | -7/Factory | Repaired Med. Armor Plating 14641 | -7/Factory | Repaired Arm. Huge Wheel 14687 | -7/Factory | Repaired Imp. Deuterium Engine 14733 | -7/Factory | Repaired Axe 14961 | -7/Factory | Core integrity fell below 50% 15064 | -7/Factory | Discovered new exit (range 7) 15201 | -7/Factory | Attached Meta Core, gained temporary slots: Propulsion, Utility, Weapon 15220 | -7/Factory | Identified exit to Storage 15220 | -7/Factory | Identified exit to Lower Caves 15359 | -7/Factory | Entered Storage 15793 | -7/Storage | Repaired Hvy. Armor Plating 15849 | -7/Storage | Core integrity fell below 20% 16100 | -7/Storage | Lost 3 parts (1n2u) 16247 | -7/Storage | Destroyed by Y-54 Guardian with Gatling Laser Last Messages --------------- 16171_ R-06 Scavenger collects Imp. Heat Sink. 16172_ K-01 Serf collects debris. 16175_ R-06 Scavenger collects Imp. Melee Analysis Suite. 16175_ Acquired Imp. Melee Analysis Suite. 16176_ K-01 Serf collects debris. 16184_ Acquired Imp. Melee Analysis Suite. 16189_ Acquired 8 matter. 16193_ ALERT: Rogue bot located, Programmers report to Storage Zone 8Y. 16200_ K-01 Serf cleans the Transfer Shaft. 16212_ Y-54 Guardian destroyed. 16213_ Acquired 8 matter. 16225_ Transmission Jammer destroyed. 16228_ Door malfunctions. 16231_ R-06 Scavenger destroyed. 16231_ P-60 Hacker destroyed. 16234_ Acquired 27 matter. 16237_ Acquired Target Analyzer. 16238_ U-05 Engineer repairs door. 16239_ Acquired 10 matter. 16242_ K-01 Serf collects debris. Map ----- +----------------------------------------------------+ | ????????# """ #??????????????????????? | | ????????# R" #??????????????????????? | | ????????# """ #####+#????????????????? | | ????????# + #??????#####??#### | | ???????######+#+### #??????#] #??# % | | ???????# #??????#] #??# | | ???????# #??????#] #??# | | ???????# ##### #??????#] #??# | | ???????######## #####+#####?## #??# | | ????????#####?# # #?#T #??# | | ????????#"""#?# # #?## #??#] | | ?????####"T"### # #??##+##### | | ?????# # # #??# % + | | ?????# """ # + #### ^#### | | ?????# """ # # + %%% #??#! | | ????## """% #% # #### % #??# ! | | ????# %+% + #??# %#### | | ????## """%*# ###########??#%% T"##### | | ?????# """ # #????????????# ""#???? | | ?????# """ # #????????????# ###???? | | ?????# # #????????????#*% #?????? | | ?????##""T""### #??###???????# #?????? | | ??????#"""""#?# #??# ######### #?????? | | ??????#######?#a #??# % #= ####### | | ??????????????# ! #??# #%=*# ^ | | ???????????####u%@#### #%[ # | | ???????????" + !% + """ """ /%*=/ """ " | | ???????????" # |#### """ """ # ==# """ " | | ???????????"??# % #??# """ """ # !# """ " | | ??????????????# #??# # # """ | | ??????????????# #??# o # # """ | | ??????????????" #??########### # | | ?????????????Y #????????????#######"" " | | ????????????""" #???????????????????""T" | | ???????????#### #??????????????????? """ | | ??????????????#Y #??????????????????????? | | ??????????????# #??????????????????????? | | ??????????????# #??????????????????????? | | ?????????????? ??????????????????????? | | ?????????????? = ??????????????????????? | | ?????????????? %[ ??????????????????????? | | ?????????????? k! ??????????????????????? | | ?????????????# ??????????????????????? | | ?????????????######??????????????????????? | | ?????????????????????????????????????????? | | ?????????????????????????????????????????? | | ?????????????????????????????????????????? | | ?????????????????????????????????????????? | | ?????????????????????????????????????????? | | ?????????????????????????????????????????? | +----------------------------------------------------+ Best States ------------- Heat Dissipation 53 Coolant Potential 50 Energy Generation 18 Energy Capacity 290 Matter Stores 300 Matter Capacity 300 Sight Range 21 Terrain Scan Density 10 ECM Strength 1 Jamming Range 12 Additional Mass Support 9 Armor Coverage 950 Evasion (%) 55 Targeting Accuracy 8 Target Analysis 5 Core Analysis 6 Recoil Reduction 10 Offensive Hacking 11 Defensive Hacking 30 Item Schematics ----------------- Arm. Huge Wheel | -7/Factory | Scanalyzed Imp. Shield Generator | -7/Factory | Scanalyzed Adv. EMP Blaster | -7/Factory | Scanalyzed Point Defense System | -7/Factory | Hacked Robot Schematics ------------------ L-41 Fighter | -7/Factory | Hacked Fabricated ------------ Nothing Alien Tech Used ----------------- None Achievements -------------- None Challenges ------------ None Game ------ Seed NodeImpactSpear Manual? 0 Play Time 01:32:09 Cumulative 137.4 hours Start 2024.11.24 @ 18:54:28 End 2024.11.25 @ 06:41:08 Sessions 11 Manual Loads 0 Difficulty Rogue Special Mode None Game No. 266 Rogue 266 Adventurer 0 Explorer 0 Win Type - Total 0 Types 0/0/0/0/0/0/0/0/0 Lore% 43 Gallery% 41 Achievement% 36 Wizard Run 0 Options --------- Layout 0 ASCII 0 Keyboard 0 Movement Mouse Keybinds 0 Fullscreen 1 Font 24/Smallcaps Map View 91x25 Zoom Use 90% Tactical HUD 1 Map Filters NONE Filters NONE Steam 1 RUN: 74c26ac4-7b97-4363-aaee-7b40feba512a